[Event "*** Titled Tuesday Blitz"]
[Site "Chess.com"]
[Date "2020.05.12"]
[Round "9"]
[White "MoreChessJulia"]
[Black "lamomiablanca"]
[Result "1-0"]
[WhiteElo "1812"]
[BlackElo "2157"]
[TimeControl "180+1"]
[EndTime "11:42:00 PDT"]
[Termination "MoreChessJulia won on time"]

1. d4 {[%clk 0:02:58.9]} 1... d6 {[%clk 0:02:58.3]} 2. c4 {[%clk 0:02:57.1]}
2... e5 {[%clk 0:02:57.5]} 3. e3 {[%clk 0:02:57.2]} 3... Nd7 {[%clk 0:02:40.8]}
4. Nc3 {[%clk 0:02:55.4]} 4... Ngf6 {[%clk 0:02:39.8]} 5. Bd3 {[%clk 0:02:54.3]}
5... g6 {[%clk 0:02:38.7]} 6. h3 {[%clk 0:02:53.2]} 6... Bg7 {[%clk 0:02:37.8]}
7. g4 {[%clk 0:02:52.8]} 7... O-O {[%clk 0:02:36]} 8. Qf3 {[%clk 0:02:52.1]}
8... exd4 {[%clk 0:02:27.7]} 9. exd4 {[%clk 0:02:51.6]} 9... Re8+ {[%clk
0:02:26.7]} 10. Nge2 {[%clk 0:02:51.2]} 10... c6 {[%clk 0:02:18]} 11. Bf4 {[%clk
0:02:50.2]} 11... Nb6 {[%clk 0:02:13.6]} 12. O-O-O {[%clk 0:02:46.9]} 12... Be6
{[%clk 0:02:07.1]} 13. b3 {[%clk 0:02:39.1]} 13... a5 {[%clk 0:02:06.1]} 14. a4
{[%clk 0:02:38.4]} 14... Nc8 {[%clk 0:01:56.3]} 15. d5 {[%clk 0:02:27.8]} 15...
cxd5 {[%clk 0:01:54.3]} 16. cxd5 {[%clk 0:02:20]} 16... Bd7 {[%clk 0:01:50.6]}
17. Nb5 {[%clk 0:02:19.5]} 17... Ra6 {[%clk 0:01:21.6]} 18. Kb1 {[%clk
0:02:16.2]} 18... Nxd5 {[%clk 0:01:05]} 19. Qxd5 {[%clk 0:02:12.5]} 19... Bc6
{[%clk 0:01:03.9]} 20. Qc4 {[%clk 0:02:01.1]} 20... Bxh1 {[%clk 0:01:02]} 21.
Rxh1 {[%clk 0:01:49.3]} 21... Qf6 {[%clk 0:01:00.7]} 22. Nbd4 {[%clk 0:01:40.1]}
22... Rxe2 {[%clk 0:00:34.5]} 23. Qxc8+ {[%clk 0:01:38.2]} 23... Bf8 {[%clk
0:00:29.8]} 24. Bh6 {[%clk 0:01:37]} 24... Rb2+ {[%clk 0:00:17.2]} 25. Ka1
{[%clk 0:01:24.6]} 25... Qe7 {[%clk 0:00:06.9]} 26. Bxf8 {[%clk 0:01:23.2]} 1-0

[Event "*** Titled Tuesday Blitz"]
[Site "Chess.com"]
[Date "2020.05.12"]
[Round "9"]
[White "grunbergmihai"]
[Black "venus02"]
[Result "1-0"]
[WhiteElo "2404"]
[BlackElo "2282"]
[TimeControl "180+1"]
[EndTime "11:42:05 PDT"]
[Termination "grunbergmihai won by resignation"]

1. Nf3 {[%clk 0:03:00.9]} 1... Nf6 {[%clk 0:02:59.2]} 2. c4 {[%clk 0:02:58.4]}
2... e6 {[%clk 0:02:59.1]} 3. g3 {[%clk 0:02:58.2]} 3... d5 {[%clk 0:02:58.9]}
4. Bg2 {[%clk 0:02:59.1]} 4... Be7 {[%clk 0:02:58.9]} 5. O-O {[%clk 0:03:00]}
5... O-O {[%clk 0:02:59]} 6. d4 {[%clk 0:02:59.8]} 6... dxc4 {[%clk 0:02:58.6]}
7. Qc2 {[%clk 0:03:00.1]} 7... a6 {[%clk 0:02:57.7]} 8. a4 {[%clk 0:03:00.2]}
8... Bd7 {[%clk 0:02:57.4]} 9. Qxc4 {[%clk 0:02:57.7]} 9... Bc6 {[%clk
0:02:57.1]} 10. Nc3 {[%clk 0:02:57.3]} 10... Nbd7 {[%clk 0:02:48.1]} 11. Ne5
{[%clk 0:02:49.1]} 11... Bxg2 {[%clk 0:02:47.1]} 12. Kxg2 {[%clk 0:02:46.6]}
12... c6 {[%clk 0:02:35.7]} 13. f4 {[%clk 0:02:43.4]} 13... Rc8 {[%clk
0:02:30.7]} 14. e4 {[%clk 0:02:42.1]} 14... c5 {[%clk 0:02:29.9]} 15. d5 {[%clk
0:02:40.3]} 15... Nb6 {[%clk 0:02:24.5]} 16. Qb3 {[%clk 0:02:33.4]} 16... c4
{[%clk 0:02:22]} 17. Qd1 {[%clk 0:02:30.6]} 17... exd5 {[%clk 0:02:21.6]} 18. a5
{[%clk 0:02:30.2]} 18... Nbd7 {[%clk 0:02:00.3]} 19. Nxd7 {[%clk 0:02:20.3]}
19... Qxd7 {[%clk 0:01:59.5]} 20. e5 {[%clk 0:02:19.9]} 20... d4 {[%clk
0:01:29.8]} 21. exf6 {[%clk 0:02:14.6]} 21... Bxf6 {[%clk 0:01:29.5]} 22. Ne4
{[%clk 0:02:08.2]} 22... Be7 {[%clk 0:01:28.5]} 23. Qf3 {[%clk 0:02:06.4]} 23...
f5 {[%clk 0:01:27.3]} 24. Nf2 {[%clk 0:01:57.7]} 24... Bb4 {[%clk 0:01:16.5]}
25. Rd1 {[%clk 0:01:55.7]} 25... d3 {[%clk 0:01:15.7]} 26. Bd2 {[%clk
0:01:54.2]} 26... Bxd2 {[%clk 0:01:14.1]} 27. Rxd2 {[%clk 0:01:54]} 27... Rc5
{[%clk 0:01:12]} 28. b3 {[%clk 0:01:45.5]} 28... Qd4 {[%clk 0:01:01.7]} 29. Rad1
{[%clk 0:01:43.2]} 29... Rxa5 {[%clk 0:00:58]} 30. bxc4 {[%clk 0:01:42.6]} 30...
Qxc4 {[%clk 0:00:58.1]} 31. Nxd3 {[%clk 0:01:39.3]} 31... Ra3 {[%clk 0:00:56]}
32. Qxb7 {[%clk 0:01:33.9]} 32... Rd8 {[%clk 0:00:55]} 33. Ne5 {[%clk 0:01:29]}
33... Ra2 {[%clk 0:00:52.3]} 34. Rxa2 {[%clk 0:01:25.6]} 34... Qxa2+ {[%clk
0:00:50.2]} 35. Kh3 {[%clk 0:01:25]} 35... Rf8 {[%clk 0:00:33]} 36. Rd7 {[%clk
0:01:20.6]} 1-0

[Event "*** Titled Tuesday Blitz"]
[Site "Chess.com"]
[Date "2020.05.12"]
[Round "9"]
[White "lifeissofun"]
[Black "AlanZhang"]
[Result "1-0"]
[WhiteElo "2335"]
[BlackElo "2170"]
[TimeControl "180+1"]
[EndTime "11:42:06 PDT"]
[Termination "lifeissofun won by resignation"]

1. e4 {[%clk 0:03:00.9]} 1... e5 {[%clk 0:02:57.9]} 2. Nf3 {[%clk 0:03:01.4]}
2... Nc6 {[%clk 0:02:58.3]} 3. Bb5 {[%clk 0:03:01.4]} 3... a6 {[%clk 0:02:58.5]}
4. Ba4 {[%clk 0:03:01.4]} 4... Nf6 {[%clk 0:02:58.1]} 5. O-O {[%clk 0:03:01.6]}
5... Be7 {[%clk 0:02:58.6]} 6. Re1 {[%clk 0:03:01.9]} 6... b5 {[%clk 0:02:59]}
7. Bb3 {[%clk 0:03:01.8]} 7... d6 {[%clk 0:02:59.6]} 8. c3 {[%clk 0:03:02.3]}
8... O-O {[%clk 0:02:59.9]} 9. d4 {[%clk 0:03:02.5]} 9... exd4 {[%clk
0:02:58.6]} 10. cxd4 {[%clk 0:03:01.5]} 10... Na5 {[%clk 0:02:53.7]} 11. Bc2
{[%clk 0:03:00]} 11... c5 {[%clk 0:02:53.6]} 12. h3 {[%clk 0:02:56.2]} 12... Nc6
{[%clk 0:02:47.8]} 13. Nc3 {[%clk 0:02:54.1]} 13... Bb7 {[%clk 0:02:14.4]} 14.
Bg5 {[%clk 0:02:40.2]} 14... h6 {[%clk 0:02:01.2]} 15. Bf4 {[%clk 0:02:38.5]}
15... Re8 {[%clk 0:01:55.1]} 16. a4 {[%clk 0:02:29]} 16... b4 {[%clk 0:01:47.8]}
17. Nd5 {[%clk 0:02:29]} 17... Nxd5 {[%clk 0:01:17.8]} 18. exd5 {[%clk
0:02:29.9]} 18... Nxd4 {[%clk 0:01:18.3]} 19. Nxd4 {[%clk 0:02:26.3]} 19... cxd4
{[%clk 0:01:19.2]} 20. Qd3 {[%clk 0:02:23.8]} 20... g6 {[%clk 0:01:13.6]} 21.
Qxd4 {[%clk 0:02:21.9]} 21... Kh7 {[%clk 0:01:04.3]} 22. Rad1 {[%clk 0:02:13]}
22... Qa5 {[%clk 0:00:32.7]} 23. Bd2 {[%clk 0:02:08.2]} 23... Bf8 {[%clk
0:00:30.6]} 24. Bxb4 {[%clk 0:01:59.3]} 24... Qc7 {[%clk 0:00:29.4]} 25. Bc3
{[%clk 0:01:58.7]} 25... Re5 {[%clk 0:00:29.2]} 26. Rxe5 {[%clk 0:01:52.3]}
26... dxe5 {[%clk 0:00:27.5]} 27. Qxe5 {[%clk 0:01:52.2]} 27... Qxe5 {[%clk
0:00:26.2]} 28. Bxe5 {[%clk 0:01:53.1]} 28... Rd8 {[%clk 0:00:25.6]} 29. d6
{[%clk 0:01:51.3]} 29... f6 {[%clk 0:00:21.8]} 30. Bg3 {[%clk 0:01:49.1]} 30...
Kg7 {[%clk 0:00:21]} 31. Bb3 {[%clk 0:01:48.1]} 31... Bc6 {[%clk 0:00:20.6]} 32.
Rc1 {[%clk 0:01:43.4]} 32... Be8 {[%clk 0:00:18.2]} 33. Rc7+ {[%clk 0:01:42.7]}
33... Kh8 {[%clk 0:00:18.3]} 34. Ra7 {[%clk 0:01:18.3]} 34... Bxd6 {[%clk
0:00:10.5]} 35. Bxd6 {[%clk 0:01:19.2]} 35... Rxd6 {[%clk 0:00:10.9]} 36. Ra8
{[%clk 0:01:19.7]} 36... Rb6 {[%clk 0:00:10.4]} 37. Rxe8+ {[%clk 0:01:18.9]}
37... Kg7 {[%clk 0:00:11.3]} 38. Re3 {[%clk 0:01:15.5]} 1-0

[Event "*** Titled Tuesday Blitz"]
[Site "Chess.com"]
[Date "2020.05.12"]
[Round "9"]
[White "AGW2016"]
[Black "ChronicUnhappiness"]
[Result "1-0"]
[WhiteElo "2162"]
[BlackElo "2311"]
[TimeControl "180+1"]
[EndTime "11:42:09 PDT"]
[Termination "AGW2016 won by resignation"]

1. e4 {[%clk 0:02:49.1]} 1... Nf6 {[%clk 0:02:57.5]} 2. e5 {[%clk 0:02:49.1]}
2... Nd5 {[%clk 0:02:57.5]} 3. d4 {[%clk 0:02:49.8]} 3... d6 {[%clk 0:02:57.1]}
4. Nf3 {[%clk 0:02:50.5]} 4... Bg4 {[%clk 0:02:51.7]} 5. Be2 {[%clk 0:02:42.6]}
5... e6 {[%clk 0:02:51.1]} 6. O-O {[%clk 0:02:42.4]} 6... a6 {[%clk 0:02:48.9]}
7. c4 {[%clk 0:02:42.6]} 7... Nb6 {[%clk 0:02:48]} 8. b3 {[%clk 0:02:43.3]} 8...
Bxf3 {[%clk 0:02:41.6]} 9. Bxf3 {[%clk 0:02:43]} 9... dxe5 {[%clk 0:02:41.8]}
10. dxe5 {[%clk 0:02:42.9]} 10... Qxd1 {[%clk 0:02:38.5]} 11. Rxd1 {[%clk
0:02:42.6]} 11... c6 {[%clk 0:02:31.3]} 12. Be3 {[%clk 0:02:37.4]} 12... N6d7
{[%clk 0:02:30.4]} 13. Nc3 {[%clk 0:02:36.6]} 13... Nxe5 {[%clk 0:02:29.1]} 14.
Be2 {[%clk 0:02:35.8]} 14... Nbd7 {[%clk 0:02:22]} 15. f4 {[%clk 0:02:32.1]}
15... Ng6 {[%clk 0:02:19.8]} 16. Ne4 {[%clk 0:02:32.7]} 16... f5 {[%clk
0:02:13]} 17. Nd6+ {[%clk 0:02:27]} 17... Bxd6 {[%clk 0:02:12]} 18. Rxd6 {[%clk
0:02:27.9]} 18... O-O-O {[%clk 0:02:00.1]} 19. Rad1 {[%clk 0:02:26.6]} 19...
Rhe8 {[%clk 0:01:51.3]} 20. Bh5 {[%clk 0:02:22.3]} 20... e5 {[%clk 0:01:39.5]}
21. Bxg6 {[%clk 0:02:20.6]} 21... hxg6 {[%clk 0:01:40.1]} 22. Rxg6 {[%clk
0:02:21.2]} 22... exf4 {[%clk 0:01:23.1]} 23. Bxf4 {[%clk 0:02:19.9]} 23... Re4
{[%clk 0:01:03.6]} 24. g3 {[%clk 0:02:09.1]} 24... Ne5 {[%clk 0:00:40.8]} 25.
Rxd8+ {[%clk 0:02:06.9]} 25... Kxd8 {[%clk 0:00:41.7]} 26. Bxe5 {[%clk
0:02:04.3]} 26... Rxe5 {[%clk 0:00:40.8]} 27. Rxg7 {[%clk 0:02:04.9]} 27... b5
{[%clk 0:00:29.6]} 28. cxb5 {[%clk 0:02:03.2]} 28... axb5 {[%clk 0:00:29.5]} 29.
Kf2 {[%clk 0:02:02.1]} 29... b4 {[%clk 0:00:26.1]} 30. Rb7 {[%clk 0:02:00.6]}
30... Ra5 {[%clk 0:00:23.5]} 31. Rxb4 {[%clk 0:01:58.7]} 31... Rxa2+ {[%clk
0:00:24.4]} 32. Kg1 {[%clk 0:01:53.8]} 32... Kd7 {[%clk 0:00:24.4]} 33. Rf4
{[%clk 0:01:44.5]} 33... Ke6 {[%clk 0:00:23.8]} 34. Rf2 {[%clk 0:01:45]} 34...
Ra1+ {[%clk 0:00:22.3]} 35. Kg2 {[%clk 0:01:45.2]} 35... Rb1 {[%clk 0:00:23.2]}
36. Rf3 {[%clk 0:01:44.5]} 36... c5 {[%clk 0:00:21.4]} 37. h4 {[%clk 0:01:41.6]}
37... Ke5 {[%clk 0:00:21.1]} 38. h5 {[%clk 0:01:40.7]} 38... Ra1 {[%clk
0:00:20.5]} 39. Kh3 {[%clk 0:01:37.1]} 39... Ra6 {[%clk 0:00:17.9]} 40. Kh4
{[%clk 0:01:36.5]} 40... Rb6 {[%clk 0:00:17.2]} 41. Kg5 {[%clk 0:01:35.7]} 41...
Rf6 {[%clk 0:00:16.9]} 42. h6 {[%clk 0:01:32.8]} 42... Rf8 {[%clk 0:00:15.5]}
43. Kg6 {[%clk 0:01:30.1]} 43... Rg8+ {[%clk 0:00:13.5]} 44. Kf7 {[%clk
0:01:27.4]} 1-0

[Event "*** Titled Tuesday Blitz"]
[Site "Chess.com"]
[Date "2020.05.12"]
[Round "9"]
[White "KingChess345"]
[Black "reniite"]
[Result "1-0"]
[WhiteElo "2218"]
[BlackElo "1939"]
[TimeControl "180+1"]
[EndTime "11:42:09 PDT"]
[Termination "KingChess345 won by resignation"]

1. d4 {[%clk 0:03:00.9]} 1... Nf6 {[%clk 0:02:57.9]} 2. Nf3 {[%clk 0:03:01.8]}
2... e6 {[%clk 0:02:57.7]} 3. g3 {[%clk 0:03:02.7]} 3... d5 {[%clk 0:02:53.8]}
4. Bg2 {[%clk 0:03:03.6]} 4... Be7 {[%clk 0:02:53.8]} 5. O-O {[%clk 0:03:04.5]}
5... c5 {[%clk 0:02:53.9]} 6. c4 {[%clk 0:03:04]} 6... cxd4 {[%clk 0:02:51.5]}
7. Qxd4 {[%clk 0:02:59.3]} 7... Nc6 {[%clk 0:02:51.1]} 8. Qd3 {[%clk 0:02:49.2]}
8... O-O {[%clk 0:02:45.2]} 9. Nc3 {[%clk 0:02:48.3]} 9... Nb4 {[%clk
0:02:39.1]} 10. Qb1 {[%clk 0:02:42.6]} 10... dxc4 {[%clk 0:02:17.2]} 11. Ne5
{[%clk 0:02:16.7]} 11... Qc7 {[%clk 0:01:54.9]} 12. Bf4 {[%clk 0:02:14.3]} 12...
Nbd5 {[%clk 0:01:45]} 13. Nxd5 {[%clk 0:02:05.6]} 13... Nxd5 {[%clk 0:01:42.5]}
14. Bxd5 {[%clk 0:02:03.8]} 14... exd5 {[%clk 0:01:36.2]} 15. Ng6 {[%clk
0:02:03.3]} 15... Bd6 {[%clk 0:01:26.1]} 16. Nxf8 {[%clk 0:02:00.8]} 16... Bxf4
{[%clk 0:01:25.6]} 17. Qxh7+ {[%clk 0:01:46.2]} 17... Kxf8 {[%clk 0:01:25.8]}
18. gxf4 {[%clk 0:01:33.5]} 18... Qxf4 {[%clk 0:01:24.3]} 19. Qh8+ {[%clk
0:01:26.4]} 19... Ke7 {[%clk 0:01:19.2]} 20. Qxg7 {[%clk 0:01:25.8]} 20... Bh3
{[%clk 0:01:16.5]} 21. Rfd1 {[%clk 0:01:13.3]} 21... Rd8 {[%clk 0:01:03.2]} 22.
Qg3 {[%clk 0:00:51.1]} 22... Qh6 {[%clk 0:00:20.3]} 23. Rd4 {[%clk 0:00:48.3]}
23... Rd6 {[%clk 0:00:18.1]} 24. Rh4 {[%clk 0:00:39.2]} 24... Qxh4 {[%clk
0:00:17.7]} 25. Qxh4+ {[%clk 0:00:38.3]} 1-0

[Event "*** Titled Tuesday Blitz"]
[Site "Chess.com"]
[Date "2020.05.12"]
[Round "9"]
[White "Enriquack"]
[Black "harkerchess"]
[Result "1-0"]
[WhiteElo "2275"]
[BlackElo "2003"]
[TimeControl "180+1"]
[EndTime "11:42:11 PDT"]
[Termination "Enriquack won by checkmate"]

1. e4 {[%clk 0:03:00.9]} 1... e5 {[%clk 0:02:59.7]} 2. Nf3 {[%clk 0:03:01.1]}
2... Nc6 {[%clk 0:02:59.5]} 3. Bb5 {[%clk 0:03:01.6]} 3... a6 {[%clk 0:02:59]}
4. Ba4 {[%clk 0:03:01.5]} 4... Nf6 {[%clk 0:02:59.3]} 5. O-O {[%clk 0:03:01.7]}
5... b5 {[%clk 0:03:00.2]} 6. Bb3 {[%clk 0:03:01.7]} 6... Be7 {[%clk 0:03:00.8]}
7. d4 {[%clk 0:03:00.6]} 7... exd4 {[%clk 0:02:55.8]} 8. e5 {[%clk 0:03:00.9]}
8... Ng8 {[%clk 0:02:52.4]} 9. c3 {[%clk 0:02:54.7]} 9... d6 {[%clk 0:02:46.8]}
10. Bd5 {[%clk 0:02:49.3]} 10... Bb7 {[%clk 0:02:44.7]} 11. cxd4 {[%clk
0:02:49.5]} 11... Na5 {[%clk 0:02:38.7]} 12. Nc3 {[%clk 0:02:43.4]} 12... Bxd5
{[%clk 0:02:36.1]} 13. Nxd5 {[%clk 0:02:43.4]} 13... dxe5 {[%clk 0:02:35.9]} 14.
dxe5 {[%clk 0:02:43.2]} 14... Bc5 {[%clk 0:02:29.8]} 15. b4 {[%clk 0:02:32.2]}
15... c6 {[%clk 0:02:25.1]} 16. bxc5 {[%clk 0:02:26.3]} 16... Qxd5 {[%clk
0:02:18.6]} 17. Qe2 {[%clk 0:02:06.4]} 17... Ne7 {[%clk 0:02:13.6]} 18. Rd1
{[%clk 0:02:05.7]} 18... Qxc5 {[%clk 0:02:12.3]} 19. Be3 {[%clk 0:02:03.8]}
19... Qc4 {[%clk 0:02:12.1]} 20. Qd2 {[%clk 0:02:01.1]} 20... O-O {[%clk
0:02:01.2]} 21. Qxa5 {[%clk 0:02:00.2]} 21... Nd5 {[%clk 0:02:00.5]} 22. Rac1
{[%clk 0:01:54.8]} 22... Qe4 {[%clk 0:01:58.5]} 23. Bc5 {[%clk 0:01:53.3]} 23...
Rfc8 {[%clk 0:01:55]} 24. h3 {[%clk 0:01:38]} 24... Nf4 {[%clk 0:01:47.5]} 25.
Re1 {[%clk 0:01:29.1]} 25... Qg6 {[%clk 0:01:35.1]} 26. Nh4 {[%clk 0:01:13.7]}
26... Qg5 {[%clk 0:01:31.1]} 27. g3 {[%clk 0:01:10.7]} 27... Nxh3+ {[%clk
0:01:28.7]} 28. Kh2 {[%clk 0:01:08.4]} 28... Nf4 {[%clk 0:01:24.3]} 29. Be3
{[%clk 0:01:04.5]} 29... Qg4 {[%clk 0:01:14.8]} 30. Bxf4 {[%clk 0:01:02.3]}
30... g5 {[%clk 0:01:14.6]} 31. Ng2 {[%clk 0:00:56.6]} 31... gxf4 {[%clk
0:01:12.3]} 32. Nxf4 {[%clk 0:00:56.7]} 32... Qf3 {[%clk 0:01:10.5]} 33. Qd2
{[%clk 0:00:56]} 33... Kh8 {[%clk 0:01:05.1]} 34. Qe3 {[%clk 0:00:55.3]} 34...
Qg4 {[%clk 0:01:03.8]} 35. e6 {[%clk 0:00:54.2]} 35... f6 {[%clk 0:00:59.1]} 36.
e7 {[%clk 0:00:52.5]} 36... Rg8 {[%clk 0:00:58.3]} 37. Rxc6 {[%clk 0:00:49.5]}
37... Rae8 {[%clk 0:00:56.6]} 38. Rxf6 {[%clk 0:00:47]} 38... h5 {[%clk
0:00:48.2]} 39. Rh6+ {[%clk 0:00:41.5]} 39... Kg7 {[%clk 0:00:47.9]} 40. Nxh5+
{[%clk 0:00:38.8]} 40... Kf7 {[%clk 0:00:43.2]} 41. Rf6# {[%clk 0:00:38.3]} 1-0

[Event "*** Titled Tuesday Blitz"]
[Site "Chess.com"]
[Date "2020.05.12"]
[Round "9"]
[White "zivicd"]
[Black "larisakalinina"]
[Result "1-0"]
[WhiteElo "2240"]
[BlackElo "1999"]
[TimeControl "180+1"]
[EndTime "11:42:15 PDT"]
[Termination "zivicd won by resignation"]

1. e4 {[%clk 0:02:43.2]} 1... c5 {[%clk 0:02:59.8]} 2. Nc3 {[%clk 0:02:41.8]}
2... a6 {[%clk 0:02:58.4]} 3. a4 {[%clk 0:02:38.3]} 3... g6 {[%clk 0:02:55.5]}
4. g3 {[%clk 0:02:38.5]} 4... Bg7 {[%clk 0:02:54.8]} 5. Bg2 {[%clk 0:02:38.6]}
5... Nc6 {[%clk 0:02:54.9]} 6. d3 {[%clk 0:02:38.8]} 6... e6 {[%clk 0:02:54.9]}
7. f4 {[%clk 0:02:38.7]} 7... Nge7 {[%clk 0:02:55]} 8. Be3 {[%clk 0:02:31.4]}
8... Nd4 {[%clk 0:02:53.5]} 9. Nf3 {[%clk 0:02:24.8]} 9... Nec6 {[%clk
0:02:50.9]} 10. O-O {[%clk 0:02:22]} 10... O-O {[%clk 0:02:50.9]} 11. e5 {[%clk
0:02:11.8]} 11... d5 {[%clk 0:02:38.1]} 12. exd6 {[%clk 0:02:09.6]} 12... Qxd6
{[%clk 0:02:37.8]} 13. Ne4 {[%clk 0:02:09.6]} 13... Qe7 {[%clk 0:02:38]} 14. c3
{[%clk 0:02:06.9]} 14... Nxf3+ {[%clk 0:02:37.1]} 15. Qxf3 {[%clk 0:02:06.6]}
15... b6 {[%clk 0:02:19.3]} 16. Nxc5 {[%clk 0:01:56.2]} 16... bxc5 {[%clk
0:02:16]} 17. Qxc6 {[%clk 0:01:56.1]} 17... Bd7 {[%clk 0:02:15.9]} 18. Qxc5
{[%clk 0:01:54.8]} 18... Qxc5 {[%clk 0:01:55.4]} 19. Bxc5 {[%clk 0:01:54.5]}
19... Rfc8 {[%clk 0:01:50.8]} 20. Bxa8 {[%clk 0:01:50]} 20... Rxc5 {[%clk
0:01:42.9]} 21. d4 {[%clk 0:01:46.1]} 21... Rc8 {[%clk 0:01:38.8]} 22. Bb7
{[%clk 0:01:37.4]} 22... Rb8 {[%clk 0:01:39]} 23. Bxa6 {[%clk 0:01:37.2]} 23...
Rxb2 {[%clk 0:01:39.3]} 24. Rfb1 {[%clk 0:01:33.3]} 24... Rc2 {[%clk 0:01:33]}
25. Rb8+ {[%clk 0:01:08.2]} 25... Bf8 {[%clk 0:01:31.9]} 26. Bb5 {[%clk
0:01:05.8]} 26... Bxb5 {[%clk 0:01:25.9]} 27. axb5 {[%clk 0:01:04.8]} 27... Kg7
{[%clk 0:01:23.8]} 28. Rc8 {[%clk 0:00:54.4]} 28... Bb4 {[%clk 0:01:20.6]} 29.
b6 {[%clk 0:00:26.2]} 29... Bxc3 {[%clk 0:01:06.6]} 30. Kh1 {[%clk 0:00:25.1]}
1-0

[Event "*** Titled Tuesday Blitz"]
[Site "Chess.com"]
[Date "2020.05.12"]
[Round "9"]
[White "Lunow"]
[Black "PetrolulSah"]
[Result "0-1"]
[WhiteElo "2075"]
[BlackElo "2267"]
[TimeControl "180+1"]
[EndTime "11:42:20 PDT"]
[Termination "PetrolulSah won on time"]

1. c4 {[%clk 0:02:42.2]} 1... Nf6 {[%clk 0:02:57.3]} 2. g3 {[%clk 0:02:39.7]}
2... g6 {[%clk 0:02:56.6]} 3. Bg2 {[%clk 0:02:39.2]} 3... d5 {[%clk 0:02:57]} 4.
cxd5 {[%clk 0:02:35.3]} 4... Nxd5 {[%clk 0:02:56.8]} 5. Nc3 {[%clk 0:02:34.4]}
5... c6 {[%clk 0:02:54.8]} 6. h4 {[%clk 0:02:25.3]} 6... h5 {[%clk 0:02:51.7]}
7. d3 {[%clk 0:02:21.7]} 7... Bg7 {[%clk 0:02:51.6]} 8. Bd2 {[%clk 0:02:20.9]}
8... O-O {[%clk 0:02:50.9]} 9. Rc1 {[%clk 0:02:18.1]} 9... Na6 {[%clk
0:02:50.4]} 10. Nf3 {[%clk 0:02:10.3]} 10... Nac7 {[%clk 0:02:50]} 11. e4 {[%clk
0:02:00.3]} 11... Nxc3 {[%clk 0:02:47.4]} 12. Bxc3 {[%clk 0:02:00.7]} 12... Ne6
{[%clk 0:02:44.4]} 13. Bxg7 {[%clk 0:01:54.8]} 13... Kxg7 {[%clk 0:02:45.3]} 14.
O-O {[%clk 0:01:50.1]} 14... c5 {[%clk 0:02:44.5]} 15. Qd2 {[%clk 0:01:44.2]}
15... b6 {[%clk 0:02:42.9]} 16. b4 {[%clk 0:01:38.3]} 16... Ba6 {[%clk
0:02:41.3]} 17. Rfd1 {[%clk 0:01:32]} 17... cxb4 {[%clk 0:02:32.2]} 18. Qxb4
{[%clk 0:01:32.9]} 18... Nc5 {[%clk 0:02:32]} 19. Ne5 {[%clk 0:01:12.1]} 19...
f6 {[%clk 0:02:23.7]} 20. d4 {[%clk 0:01:06.1]} 20... Ne6 {[%clk 0:02:11.7]} 21.
Nc6 {[%clk 0:01:02.4]} 21... Qd6 {[%clk 0:02:10.9]} 22. Qb2 {[%clk 0:00:49.2]}
22... Bb7 {[%clk 0:01:58.8]} 23. e5 {[%clk 0:00:48.7]} 23... Qd7 {[%clk
0:01:50.1]} 24. d5 {[%clk 0:00:31.6]} 24... Nc5 {[%clk 0:01:44]} 25. d6 {[%clk
0:00:25.9]} 25... Bxc6 {[%clk 0:01:15.7]} 26. dxe7 {[%clk 0:00:25.4]} 26... Qxe7
{[%clk 0:01:15.3]} 27. Bxc6 {[%clk 0:00:20.3]} 27... Rac8 {[%clk 0:01:15.4]} 28.
exf6+ {[%clk 0:00:18.4]} 28... Qxf6 {[%clk 0:01:11.9]} 29. Qxf6+ {[%clk
0:00:09.4]} 29... Rxf6 {[%clk 0:01:11.9]} 30. Bd5 {[%clk 0:00:08.9]} 30... Rcf8
{[%clk 0:01:11.6]} 31. Rc2 {[%clk 0:00:07.7]} 31... Rd6 {[%clk 0:01:10.1]} 32.
Bf3 {[%clk 0:00:02]} 32... Rxd1+ {[%clk 0:01:07.9]} 33. Bxd1 {[%clk 0:00:02.9]}
33... Rd8 {[%clk 0:01:08]} 34. Be2 {[%clk 0:00:02.5]} 34... Rd4 {[%clk
0:01:07.9]} 0-1

[Event "*** Titled Tuesday Blitz"]
[Site "Chess.com"]
[Date "2020.05.12"]
[Round "9"]
[White "vinniethepooh"]
[Black "2346PL"]
[Result "0-1"]
[WhiteElo "2601"]
[BlackElo "2476"]
[TimeControl "180+1"]
[EndTime "11:42:21 PDT"]
[Termination "2346PL won on time"]

1. d4 {[%clk 0:03:00.9]} 1... f5 {[%clk 0:02:59.8]} 2. g3 {[%clk 0:02:58.8]}
2... Nf6 {[%clk 0:03:00.2]} 3. Bg2 {[%clk 0:02:58.9]} 3... g6 {[%clk 0:03:01.1]}
4. Nf3 {[%clk 0:02:59.1]} 4... Bg7 {[%clk 0:03:01.5]} 5. O-O {[%clk 0:02:57.5]}
5... O-O {[%clk 0:03:02.1]} 6. b3 {[%clk 0:02:57.6]} 6... d6 {[%clk 0:03:02.8]}
7. Bb2 {[%clk 0:02:58]} 7... Qe8 {[%clk 0:03:03.2]} 8. c4 {[%clk 0:02:54.1]}
8... e5 {[%clk 0:03:03.2]} 9. dxe5 {[%clk 0:02:52.2]} 9... Ng4 {[%clk
0:03:03.8]} 10. Nc3 {[%clk 0:02:43.2]} 10... Nxe5 {[%clk 0:03:02.8]} 11. Qd2
{[%clk 0:02:40.9]} 11... Nbc6 {[%clk 0:02:59.5]} 12. Nd5 {[%clk 0:02:34.5]}
12... Qd8 {[%clk 0:02:59.3]} 13. Rad1 {[%clk 0:02:32.8]} 13... Nxf3+ {[%clk
0:02:53.6]} 14. Bxf3 {[%clk 0:02:33.7]} 14... Ne5 {[%clk 0:02:53.9]} 15. Bg2
{[%clk 0:02:26.3]} 15... Bd7 {[%clk 0:02:43.5]} 16. Nf4 {[%clk 0:02:21.6]} 16...
Qc8 {[%clk 0:02:39.4]} 17. h4 {[%clk 0:02:13.7]} 17... Re8 {[%clk 0:02:32.6]}
18. h5 {[%clk 0:01:57.4]} 18... g5 {[%clk 0:02:32.2]} 19. Nd5 {[%clk 0:01:49.5]}
19... h6 {[%clk 0:02:31.1]} 20. f4 {[%clk 0:01:48.3]} 20... c6 {[%clk
0:01:56.2]} 21. fxe5 {[%clk 0:01:44.1]} 21... cxd5 {[%clk 0:01:56]} 22. Bxd5+
{[%clk 0:01:42]} 22... Kh8 {[%clk 0:01:55]} 23. exd6 {[%clk 0:01:42.4]} 23...
Qc5+ {[%clk 0:01:52.5]} 24. Kh2 {[%clk 0:01:42.5]} 24... Qxd6 {[%clk 0:01:34]}
25. Bxg7+ {[%clk 0:01:31.4]} 25... Kxg7 {[%clk 0:01:34.9]} 26. Bxb7 {[%clk
0:01:32.3]} 26... Qxd2 {[%clk 0:01:32.7]} 27. Rxd2 {[%clk 0:01:31]} 27... Rad8
{[%clk 0:01:33.6]} 28. Rfd1 {[%clk 0:01:28.7]} 28... Re7 {[%clk 0:01:32.4]} 29.
c5 {[%clk 0:01:27.9]} 29... Kf6 {[%clk 0:01:15.3]} 30. c6 {[%clk 0:01:24.6]}
30... Bxc6 {[%clk 0:01:15.3]} 31. Bxc6 {[%clk 0:01:24.4]} 31... Rxe2+ {[%clk
0:01:14.2]} 32. Rxe2 {[%clk 0:01:24.1]} 32... Rxd1 {[%clk 0:01:14.9]} 33. Kg2
{[%clk 0:01:20.5]} 33... g4 {[%clk 0:01:12.5]} 34. Be8 {[%clk 0:01:09.6]} 34...
Kg5 {[%clk 0:01:10.9]} 0-1